bitfinex/quotes_ETHUSD_20251215
["timestamp","ask_amount","ask_price","bid_price","bid_amount"]
[1765758673873,0.2063,3079.7,3079.4,0.517]
[1765758674516,0.0047,3079.5,3079.4,0.517]
[1765758676285,0.4774,3079.5,3079.4,0.517]
[1765758677701,0.0047,3079.5,3079.4,0.517]
[1765758678294,0.0287,3079.5,3079.4,0.517]
[1765758679005,0.00980728,3080.1,3079.4,0.517]
[1765758679006,3.24624944,3080.5,3079.5,0.58047529]
[1765758679190,0.4727,3080.6,3079.6,0.880804]
[1765758679511,0.4727,3080.6,3079.6,1.345604]
[1765758679809,3.71884521,3080.6,3079.6,1.345604]
[1765758680506,0.4727,3080.6,3079.6,1.345604]
[1765758680807,0.2079,3079.7,3079.0,3.24780772]
[1765758681104,0.0047,3079.6,3079.1,0.517]
[1765758681302,0.0047,3079.6,3079.1,0.7088]
[1765758681502,0.0047,3079.6,3079.1,1.1736]
[1765758681674,0.1807,3079.7,3079.2,0.4648]
[1765758682911,0.1807,3079.7,3079.3,3.24749131]
[1765758683507,0.1807,3079.7,3079.3,3.24949131]
[1765758685206,0.6534,3079.7,3079.3,0.002]
[1765758685410,0.0272,3079.4,3079.3,0.002]
[1765758685571,0.00980728,3080.0,3079.3,0.002]
[1765758685901,0.6534,3079.9,3079.3,0.4773]
[1765758686104,0.1807,3079.9,3079.3,1.27274691]
[1765758686310,0.4737,3080.2,3079.4,0.405504]
[1765758686493,3.73007797,3080.2,3079.5,0.517]
[1765758686881,0.4952,3080.1,3079.5,0.517]
[1765758687084,0.005,3079.6,3079.5,0.922504]
[1765758687278,0.005,3079.6,3079.5,0.517]
[1765758687477,0.497,3079.6,3079.5,0.517]
[1765758688205,0.497,3079.6,3079.3,3.2494221]
[1765758688206,6.99136841,3079.6,3079.3,0.002]
[1765758688405,0.0049,3079.4,3079.3,0.002]
[1765758688784,0.4874,3079.4,3079.3,0.002]
[1765758689204,3.74459313,3079.4,3079.3,0.002]
[1765758693323,3.25682865,3079.8,3079.3,0.002]
[1765758693324,0.001,3080.2,3079.6,0.58047529]
[1765758693525,0.001,3080.2,3079.7,1.11300761]
[1765758693818,0.001,3080.2,3080.1,0.6727]
[1765758694022,0.001,3080.2,3080.1,1.078204]
[1765758694190,0.001,3080.2,3080.1,1.540804]
[1765758695809,0.001,3080.2,3080.1,5.36792712]
[1765758696014,0.001,3080.2,3080.1,6.22939661]
[1765758697385,0.001,3080.2,3080.1,12.99534142]
[1765758697588,0.001,3081.1,3080.2,0.98597929]
[1765758697901,0.001,3081.1,3080.4,0.98597929]
[1765758698213,0.001,3081.1,3081.0,0.885704]
[1765758698387,0.001,3081.1,3081.0,1.402704]
[1765758698766,0.001,3081.1,3081.0,2.06362193]
[1765758698931,0.001,3081.1,3081.0,1.08402193]
[1765758699235,0.001,3081.1,3081.0,1.402704]
[1765758699516,0.001,3081.1,3081.0,1.865304]
[1765758699921,0.001,3081.1,3081.0,5.69147873]
[1765758700626,0.001,3081.1,3081.0,1.98317929]
[1765758700917,0.001,3081.1,3081.0,0.58047529]
[1765758701224,0.001,3081.1,3080.9,0.517]
[1765758701522,0.001,3081.1,3081.0,4.71187873]
[1765758701690,0.001,3081.1,3081.0,6.02195743]
[1765758702414,0.001,3081.1,3081.0,1.83345799]
[1765758702638,0.001,3081.1,3081.0,1.46617929]
[1765758702848,0.001,3081.1,3081.0,5.17447873]
[1765758704147,0.001,3081.1,3081.0,0.58047529]
[1765758704326,0.001,3081.1,3081.0,5.69147873]
[1765758705121,0.001,3081.1,3081.0,1.98317929]
[1765758705323,0.001,3081.1,3081.0,5.75177532]
[1765758705526,0.001,3081.1,3081.0,6.21437532]
[1765758705752,0.001,3081.1,3081.0,2.02587588]
[1765758705916,0.001,3081.1,3081.0,6.21437532]
[1765758706112,0.0057,3081.1,3081.0,1.10337188]
[1765758706338,0.4724,3081.1,3080.1,3.24664477]
[1765758706522,0.4724,3081.1,3080.1,0.58047529]
[1765758706844,0.4724,3081.1,3080.2,3.24651822]
[1765758707044,0.4724,3081.1,3080.3,3.76434129]
[1765758707419,0.4724,3081.1,3080.4,3.24627765]
[1765758707618,0.4724,3081.1,3080.3,0.518]
[1765758708144,3.24569944,3081.0,3080.3,0.518]
[1765758708647,0.6597,3080.9,3080.3,0.518]
[1765758709222,0.001,3081.1,3080.3,4.22700705]
[1765758709553,3.24663747,3081.1,3080.4,0.74735256]
[1765758709750,0.001,3081.1,3080.4,0.405504]
[1765758709915,3.24666661,3081.1,3080.4,0.405504]
[1765758710121,0.001,3081.1,3080.4,0.405504]
[1765758710428,0.49330728,3081.1,3080.4,0.405504]
[1765758710631,0.49330728,3081.1,3080.4,3.65183496]
[1765758710833,0.49330728,3081.1,3080.4,4.11507846]
[1765758711018,0.49330728,3081.1,3080.4,0.8687475]
[1765758711652,0.4835,3081.1,3080.5,0.518]
[1765758712223,0.001,3081.1,3080.5,3.76422483]
[1765758713058,0.001,3081.1,3080.5,0.518]
[1765758713268,0.001,3081.1,3080.6,0.405504]
[1765758713448,0.001,3081.1,3080.6,1.44857929]
[1765758713791,0.001,3081.1,3081.0,0.4802]
[1765758713925,0.001,3081.1,3081.0,0.9982]
[1765758714121,0.001,3081.1,3081.0,1.403704]
[1765758714351,0.001,3081.1,3081.0,5.22987873]
[1765758714538,0.001,3081.1,3081.0,1.866304]
[1765758714723,0.001,3081.1,3081.0,1.403704]
[1765758715070,0.001,3081.1,3081.0,0.58047529]
[1765758715374,0.001,3081.1,3081.0,1.09847529]
[1765758715557,0.001,3081.1,3081.0,4.34417473]
[1765758715880,0.001,3081.1,3081.0,6.1268962]
[1765758717979,0.001,3081.1,3081.0,1.90059676]
[1765758718272,0.001,3081.1,3081.0,2.41839676]
[1765758718472,0.001,3081.1,3081.0,0.58047529]
[1765758718661,0.001,3081.1,3081.0,1.09847529]
[1765758719040,0.001,3081.1,3081.0,4.34417473]
[1765758719264,0.001,3081.1,3081.0,3.82617473]
[1765758719574,0.001,3081.1,3081.0,5.22967873]
[1765758719779,0.001,3081.1,3081.0,6.07723569]
[1765758720372,0.044,3081.9,3081.1,4.23156559]
[1765758720561,0.044,3081.9,3081.1,4.41666559]
[1765758721071,0.044,3081.9,3081.1,4.23156559]
[1765758721675,0.05380728,3081.9,3081.1,0.405504]
[1765758721843,0.4731,3081.2,3081.1,0.405504]
[1765758722038,0.4731,3081.2,3080.9,0.58047529]
[1765758722372,0.2246,3081.1,3081.0,1.09847529]
[1765758722975,0.4655,3081.5,3081.0,1.09847529]
[1765758723191,3.71069925,3081.5,3081.0,0.518]
[1765758723336,0.2322,3081.1,3080.3,0.002]
[1765758723677,0.2299,3080.4,3080.3,0.002]
[1765758723886,0.2261,3080.4,3079.0,0.97644517]
[1765758724174,0.198,3080.5,3079.1,0.1851]
[1765758724175,3.71974783,3080.1,3079.1,0.1851]
[1765758724387,3.71974783,3080.1,3079.4,0.518]
[1765758724539,0.6896,3080.1,3079.2,6.49514295]
[1765758724736,0.6896,3080.1,3079.8,0.518]
[1765758724737,0.4731,3080.1,3079.8,0.518]
[1765758725242,0.6896,3080.1,3079.8,0.518]
[1765758726283,0.198,3080.5,3079.8,0.518]
[1765758726458,0.00980728,3081.5,3080.4,0.48]
[1765758726644,0.47530728,3081.3,3080.5,0.998]
[1765758726841,0.47530728,3081.3,3080.5,0.518]
[1765758728342,3.72077608,3081.3,3080.5,0.518]
[1765758728545,3.72077608,3081.3,3080.6,0.37642907]
[1765758728746,0.001,3081.1,3080.6,0.37642907]
[1765758729144,0.4665,3081.1,3080.5,0.518]
[1765758730076,0.001,3081.1,3080.5,0.518]
[1765758730381,0.001,3081.1,3080.6,0.405504]
[1765758730745,0.001,3081.1,3080.6,4.13657263]
[1765758730950,0.001,3081.1,3081.0,0.48]
[1765758731173,0.001,3081.1,3081.0,0.998]
[1765758731476,0.001,3081.1,3081.0,1.403504]
[1765758731977,0.001,3081.1,3081.0,1.5923544]
[1765758732179,0.001,3081.1,3081.0,1.1123544]
[1765758732477,0.001,3081.1,3081.0,1.5923544]
[1765758732680,0.001,3081.1,3081.0,2.0773544]
[1765758732885,0.001,3081.1,3081.0,5.90352913]
[1765758734597,3.42262046,3082.4,3081.0,5.90352913]
[1765758734598,0.1783,3082.4,3081.0,5.90352913]
[1765758734881,0.4685,3082.6,3082.4,0.405504]
[1765758734882,0.003,3082.6,3082.4,0.405504]
[1765758735083,0.003,3082.6,3082.5,1.403504]
[1765758735448,0.003,3082.6,3082.5,1.888504]
[1765758735648,0.003,3082.6,3082.5,2.68768241]
[1765758736050,0.003,3082.6,3082.5,0.923504]
[1765758736251,0.003,3082.6,3082.0,0.485]
[1765758736252,9.73267581,3082.4,3080.3,3.81334839]
[1765758736483,0.3359,3080.8,3080.5,0.518]
[1765758736984,0.518,3082.0,3080.5,0.518]
[1765758736985,0.3359,3081.5,3080.5,0.518]
[1765758737179,0.3359,3081.5,3080.5,1.003]
[1765758737692,0.3359,3081.5,3080.6,0.58047529]
[1765758738064,0.3359,3081.5,3080.6,1.06547529]
[1765758738401,3.24527812,3081.4,3080.7,0.405504]
[1765758738562,3.24527812,3081.4,3080.5,0.518]
[1765758738751,3.58110809,3081.5,3080.6,0.98597929]
[1765758738949,3.58110809,3081.5,3080.5,0.518]
[1765758739156,0.3359,3081.4,3080.5,0.518]
[1765758739477,0.3359,3081.4,3080.7,0.405504]
[1765758739656,0.105,3080.6,3080.5,0.518]
[1765758740054,0.4386,3080.6,3080.5,0.518]
[1765758740866,6.93084176,3080.6,3079.5,0.002]
[1765758741069,0.0033,3080.1,3079.7,0.518]
[1765758741395,0.3359,3080.5,3079.7,0.518]
[1765758741597,0.91637529,3080.9,3079.7,1.003]
[1765758741894,7.40798487,3080.9,3079.8,0.405504]
[1765758742085,0.105,3080.1,3079.7,0.518]
[1765758743406,3.68524783,3080.1,3079.5,0.002]
[1765758743897,4.37841823,3080.1,3079.5,0.002]
[1765758745678,4.04481823,3080.1,3079.5,0.002]
[1765758745891,4.37841823,3080.1,3079.5,0.002]
[1765758747204,11.27321452,3080.1,3079.5,0.002]
[1765758747988,17.03621052,3080.1,3079.5,0.002]
[1765758748876,18.54199652,3080.1,3079.5,0.002]
[1765758749090,17.22469252,3080.1,3079.5,0.002]
[1765758749484,16.90308452,3080.1,3079.5,0.002]
[1765758749799,17.30858852,3080.1,3079.5,0.002]
[1765758750004,7.19265752,3080.1,3079.5,0.002]
[1765758750209,4.95889352,3080.1,3079.5,0.002]
[1765758750803,0.105,3080.1,3079.5,0.002]
[1765758750978,3.35164783,3080.1,3079.5,0.002]
[1765758752193,3.68524783,3080.1,3079.5,0.002]
[1765758754000,4.20324783,3080.1,3079.5,0.002]
[1765758754585,4.78372312,3080.1,3079.5,0.002]
[1765758754775,21.63077714,3080.1,3079.5,0.002]
[1765758755096,11.97208114,3080.1,3079.5,0.002]
[1765758755598,12.37758514,3080.1,3079.5,0.002]
[1765758755798,20.14302514,3080.1,3079.5,0.002]
[1765758755972,11.52022114,3080.1,3079.5,0.002]
[1765758757499,39.75972514,3080.1,3079.5,0.002]
[1765758757800,19.72258029,3079.6,3079.5,1e-08]
[1765758758096,23.48775524,3079.6,3079.5,1e-08]
[1765758758303,23.82365524,3079.6,3079.5,1e-08]
[1765758758880,0.3359,3079.1,3078.8,0.002]
[1765758759091,0.405504,3078.7,3078.5,0.002]
[1765758759281,0.005,3078.4,3078.0,0.002]
[1765758759479,0.1596,3078.1,3078.0,0.002]
[1765758759702,0.6786,3078.1,3078.0,0.002]
[1765758760205,3.92735735,3078.1,3078.0,0.002]
[1765758760400,3.40835735,3078.1,3078.0,0.002]
[1765758760606,4.59305671,3078.1,3078.0,0.002]
[1765758761103,5.508432,3078.1,3078.0,0.002]
[1765758763805,4.654532,3078.1,3078.0,0.002]
[1765758764108,5.172532,3078.1,3078.0,0.002]
[1765758764411,0.1055,3077.7,3077.6,1e-08]
[1765758764602,24.01079658,3077.7,3077.6,1e-08]
[1765758764809,21.95821658,3077.7,3077.6,1e-08]
[1765758764978,10.99009958,3077.7,3077.6,1e-08]
[1765758765504,3.69057958,3077.7,3077.6,1e-08]
[1765758765679,4.90452401,3077.7,3077.6,1e-08]
[1765758767402,4.04962401,3077.7,3077.6,1e-08]
[1765758767707,3.76817958,3077.7,3077.6,1e-08]
[1765758767881,3.93267958,3077.7,3077.6,1e-08]
[1765758768078,3.76817958,3077.7,3077.6,1e-08]
[1765758768285,4.51315487,3077.7,3077.6,1e-08]
[1765758768577,4.84735487,3077.7,3077.6,1e-08]
[1765758768800,5.65797683,3077.7,3077.6,1e-08]
[1765758770482,14.19569683,3077.7,3077.6,1e-08]
[1765758771108,13.19569683,3077.7,3077.6,1e-08]
[1765758771610,11.05703683,3077.7,3077.6,1e-08]
[1765758771800,5.65797683,3077.7,3077.6,1e-08]
[1765758772002,5.13897683,3077.7,3077.6,1e-08]
[1765758772389,5.65797683,3077.7,3077.6,1e-08]
[1765758772703,5.13897683,3077.7,3077.6,1e-08]
[1765758772910,5.65797683,3077.7,3077.6,1e-08]
[1765758774196,5.13897683,3077.7,3077.6,1e-08]
[1765758774395,5.65797683,3077.7,3077.6,1e-08]
[1765758777724,0.98597929,3077.3,3077.0,0.002]
[1765758777925,0.0519,3076.4,3076.3,1e-08]
[1765758778092,0.9058,3076.4,3076.3,1e-08]
[1765758778505,0.5699,3076.4,3076.3,1e-08]
[1765758779000,0.9058,3076.4,3076.3,1e-08]
[1765758779899,0.3359,3076.1,3076.0,1e-08]
[1765758780224,11.69242929,3076.1,3076.0,1e-08]
[1765758780400,4.61733529,3076.1,3076.0,1e-08]
[1765758780600,1.43537529,3076.1,3076.0,1e-08]
[1765758780806,10.83205829,3076.1,3076.0,1e-08]
[1765758781198,10.84186557,3076.1,3076.0,1e-08]
[1765758781399,5.93367423,3076.1,3076.0,1e-08]
[1765758781600,0.92618257,3076.1,3076.0,1e-08]
[1765758781826,3.84115217,3076.1,3076.0,1e-08]
[1765758782309,4.36015217,3076.1,3076.0,0.49160001]
[1765758783111,3.26067688,3076.1,3076.0,0.94860001]
[1765758783311,3.2508696,3076.1,3076.0,0.94860001]
[1765758783630,3.77955593,3076.3,3076.0,0.94860001]
[1765758783631,0.00980728,3076.3,3076.0,0.94860001]
[1765758783839,0.00980728,3076.3,3076.2,0.68]
[1765758783840,3.26046553,3076.3,3076.2,0.68]
[1765758784022,3.26046553,3076.3,3076.2,1.137]
[1765758786035,3.25065825,3076.3,3076.2,1.137]
[1765758787610,3.24906069,3077.9,3076.2,1.137]
[1765758787811,3.24906069,3077.9,3076.3,0.457]
[1765758787812,0.00980728,3076.9,3076.3,0.457]
[1765758788107,3.25013,3076.8,3076.3,0.457]
[1765758788514,3.25013,3076.8,3076.7,0.4547]
[1765758789221,3.25013,3076.8,3076.7,0.9386]
[1765758789535,0.00980728,3076.8,3076.7,0.9386]
[1765758790346,0.00980728,3076.8,3076.7,0.4547]
[1765758791036,0.00980728,3076.8,3076.4,0.4839]
[1765758791261,0.00980728,3076.6,3076.4,0.4839]
[1765758791613,0.00980728,3076.6,3076.5,0.4547]
[1765758791941,6.51048984,3076.6,3076.2,0.1884]
[1765758792142,3.26014856,3076.6,3076.5,0.4547]
[1765758792649,3.26014856,3076.6,3076.5,0.9386]
[1765758793144,6.51048984,3076.6,3076.2,0.1884]
[1765758793355,0.00980728,3076.3,3076.2,0.1884]
[1765758793649,0.00980728,3076.3,3076.2,0.6723]
[1765758793850,0.00980728,3076.3,3076.2,1.127]
[1765758794047,3.26046553,3076.3,3076.2,1.127]
[1765758795216,3.26046553,3076.3,3076.2,0.6431]
[1765758795414,3.25044693,3076.5,3076.2,1.127]
[1765758795617,3.25044693,3076.5,3076.4,0.4547]
[1765758796754,3.25044693,3076.5,3076.2,0.1884]
[1765758796755,6.50089386,3076.5,3076.2,0.1884]
[1765758796924,0.00980728,3076.4,3076.2,0.6723]
[1765758797744,0.00980728,3076.4,3076.3,0.9386]
[1765758798144,3.26035987,3076.4,3076.3,0.9386]
[1765758800432,3.25055259,3076.4,3076.3,0.9386]
[1765758801876,3.26035987,3076.4,3076.3,0.9386]
[1765758803637,3.26135987,3076.4,3076.3,0.9386]
[1765758804071,3.25155259,3076.4,3076.3,0.9386]
[1765758805037,0.001,3076.4,3076.3,0.4547]
[1765758805262,0.01080728,3076.4,3076.3,0.4547]
[1765758806676,0.01080728,3076.4,3076.3,0.9499]
[1765758807179,3.26135987,3076.4,3076.3,0.4547]
[1765758807379,7.37617387,3076.4,3076.1,0.002]
[1765758807675,0.00980728,3076.2,3076.1,0.002]
[1765758808042,0.00980728,3076.2,3076.1,0.4618]
[1765758808673,0.00980728,3076.2,3076.1,0.957]
[1765758808844,0.00980728,3076.2,3076.1,0.4618]
[1765758809245,3.2605712,3076.2,3076.1,0.4618]
[1765758809441,4.174561,3076.2,3076.1,0.002]
[1765758809847,4.692561,3076.2,3076.1,0.002]
[1765758810976,3.2605712,3076.2,3076.1,1.1758]
[1765758811179,3.26138083,3076.4,3076.1,1.1758]
[1765758811358,3.26138083,3076.4,3076.3,0.482]
[1765758811555,0.001,3076.4,3076.3,0.482]
[1765758811744,0.001,3076.4,3076.3,0.9767]
[1765758812272,0.001,3076.4,3076.3,0.482]
[1765758812456,3.25155259,3076.4,3076.3,0.482]
[1765758812855,7.36537751,3076.4,3076.1,0.002]
[1765758813062,0.00980728,3076.3,3076.1,0.002]
[1765758813361,3.25076392,3076.2,3076.1,0.6938]
[1765758813751,3.25066789,3076.3,3076.1,1.1758]
[1765758813951,3.25066789,3076.3,3076.2,0.4947]
[1765758814157,3.25066789,3076.3,3076.2,0.9767]
[1765758814750,0.001,3076.4,3076.2,0.9767]
[1765758814945,0.001,3076.4,3076.3,0.9767]
[1765758821394,0.001,3076.4,3076.3,0.482]
[1765758821858,0.001,3076.4,3076.3,0.9767]
[1765758826182,0.3369,3076.4,3076.1,0.1991]
[1765758826492,0.00980728,3076.3,3076.1,0.1991]
[1765758826676,0.00980728,3076.3,3076.1,0.002]
[1765758827085,0.3346,3076.2,3076.1,0.002]
[1765758827595,3.58536392,3076.2,3076.1,0.002]
[1765758827824,4.27004613,3076.2,3076.1,0.002]
[1765758828604,4.48324613,3076.2,3076.1,0.002]
[1765758830699,5.06372142,3076.2,3076.1,0.002]
[1765758832991,5.58172142,3076.2,3076.1,0.002]
[1765758833165,5.98722542,3076.2,3076.1,0.002]
[1765758833369,9.41122542,3076.2,3076.1,0.002]
[1765758834091,5.46922542,3076.2,3076.1,0.002]
[1765758834267,5.98722542,3076.2,3076.1,0.002]
[1765758834991,5.98822542,3076.2,3076.1,0.002]
[1765758835595,5.24692142,3076.2,3076.1,0.002]
[1765758835909,4.51692142,3076.2,3076.1,0.484]
[1765758836070,3.93644613,3076.2,3076.1,0.484]
[1765758836672,4.27234613,3076.2,3076.1,0.002]
[1765758837192,4.45444613,3076.2,3076.1,0.002]
[1765758837391,4.78904613,3076.2,3076.1,0.002]
[1765758839086,5.00224613,3076.2,3076.1,0.002]
[1765758840173,5.58272142,3076.2,3076.1,0.002]
[1765758841025,16.94805142,3076.2,3076.1,0.002]
[1765758841374,3.424,3075.0,3074.7,0.002]
[1765758841675,5.13987929,3075.0,3074.7,0.002]
[1765758841910,5.47377929,3075.0,3074.7,0.002]
[1765758842073,4.95577929,3075.0,3074.7,0.002]
[1765758842277,8.72581181,3075.0,3074.7,0.002]
[1765758842478,9.92358366,3075.0,3074.7,0.002]
[1765758842681,8.66617966,3075.0,3074.7,0.002]
[1765758843000,5.03027966,3075.0,3074.9,0.4993]
[1765758843189,3.77003252,3075.0,3074.9,0.9911]
[1765758843393,3.2519537,3075.1,3074.9,0.9911]
[1765758843587,3.2519537,3075.1,3074.9,0.002]
[1765758844499,6.5038133,3075.2,3074.9,0.002]
[1765758844702,0.00980728,3075.1,3074.9,0.002]
[1765758846499,3.58593252,3075.0,3074.9,0.002]
[1765758847397,3.77003252,3075.0,3074.9,0.002]
[1765758847597,3.98403252,3075.0,3074.9,0.002]
[1765758850283,3.98513252,3075.0,3074.9,0.002]
[1765758850606,4.81275062,3075.0,3074.9,0.002]
[1765758851914,4.07965062,3075.0,3074.9,0.4993]
[1765758852077,0.01080728,3075.1,3074.9,0.9911]
[1765758852280,0.001,3075.1,3075.0,0.9891]
[1765758860436,0.001,3075.1,3075.0,5.22711181]
[1765758863857,0.001,3075.1,3075.0,5.74511181]
[1765758864213,0.001,3075.1,3075.0,7.2387772]
[1765758873158,0.001,3075.1,3075.0,3.58124068]
[1765758873355,0.001,3075.1,3075.0,2.08757529]
[1765758873724,0.001,3075.1,3075.0,1.0153]
[1765758874452,0.215,3075.1,3074.9,0.002]
[1765758874822,0.3327,3075.0,3074.9,0.002]
[1765758875140,3.58473252,3075.0,3074.9,0.002]
[1765758875341,4.29000742,3075.0,3074.9,0.002]
[1765758875641,0.001,3075.1,3074.9,0.9759]
[1765758875841,0.001,3075.1,3075.0,1.0174]
[1765758876025,0.001,3075.1,3075.0,1.4919]
[1765758877051,0.001,3075.1,3075.0,5.32440781]
[1765758878356,0.001,3075.1,3075.0,6.18226451]
[1765758880661,0.001,3075.1,3075.0,2.93023199]
[1765758880858,0.3349,3075.1,3074.9,0.002]
[1765758881024,0.001,3075.1,3074.9,0.002]
[1765758882233,0.001,3075.1,3075.0,0.9739]
[1765758883245,0.001,3075.1,3075.0,4.22593252]
[1765758883728,0.001,3075.1,3075.0,4.22793252]
[1765758889039,0.001,3075.1,3075.0,5.02794054]
[1765758889865,0.001,3075.1,3075.0,4.55344054]
[1765758890164,0.001,3075.1,3075.0,5.02794054]
[1765758890378,0.001,3075.1,3075.0,4.22793252]
[1765758891581,0.001,3075.1,3075.0,8.79544297]
[1765758895491,0.001,3075.1,3075.0,9.78142226]
[1765758901360,0.001,3075.1,3075.0,9.82492226]
[1765758901552,0.001,3075.1,3075.0,0.52]
[1765758901553,0.215,3075.1,3075.0,0.52]
[1765758901764,0.215,3075.1,3075.0,0.002]
[1765758901966,0.3349,3075.1,3075.0,0.002]
[1765758902165,0.001,3075.1,3075.0,5.54261045]
[1765758902364,0.001,3075.1,3075.0,6.72745891]
[1765758902776,0.001,3075.1,3075.0,7.13296291]
[1765758902983,0.001,3075.1,3075.0,7.59956275]
[1765758903210,0.001,3075.1,3075.0,7.13296291]
[1765758904175,0.3349,3075.1,3075.0,4.56951045]
[1765758904369,0.5489,3075.1,3075.0,0.002]
[1765758906609,3.80082676,3075.1,3075.0,0.002]
[1765758908294,3.80082676,3075.1,3074.9,1e-08]
[1765758908295,16.04075729,3075.0,3074.9,1e-08]
[1765758908508,18.82668981,3075.0,3074.9,1e-08]
[1765758908712,21.89826423,3075.0,3074.9,1e-08]
[1765758909996,10.62591123,3075.0,3074.9,1e-08]
[1765758910586,40.67288951,3075.0,3074.9,1e-08]
[1765758910810,35.41392751,3075.0,3074.9,1e-08]
[1765758910974,7.24988951,3075.0,3074.9,1e-08]
[1765758911180,5.10181909,3075.0,3074.9,1e-08]
[1765758914281,8.08440009,3075.0,3074.9,1e-08]
[1765758914715,35.10181909,3075.0,3074.9,1e-08]
[1765758915010,27.78899709,3075.0,3074.9,1e-08]
[1765758915508,22.28438009,3075.0,3074.9,1e-08]
[1765758915711,25.1645945,3075.0,3074.9,1e-08]
[1765758916688,37.6565305,3075.0,3074.9,1e-08]
[1765758916887,20.2125455,3075.0,3074.9,1e-08]
[1765758917106,14.4623685,3075.0,3074.9,1e-08]
[1765758917581,27.1814895,3075.0,3074.9,1e-08]
[1765758917982,23.8882695,3075.0,3074.9,1e-08]
[1765758918511,18.9848245,3075.0,3074.9,1e-08]
[1765758918713,26.7848185,3075.0,3074.9,1e-08]
[1765758918920,19.8095585,3075.0,3074.9,1e-08]
[1765758919218,6.15255121,3075.0,3074.9,1e-08]
[1765758919520,4.1158398,3075.0,3074.9,1e-08]
[1765758919821,3.2639398,3075.0,3074.9,1e-08]
[1765758920022,4.1158398,3075.0,3074.9,1e-08]
[1765758920185,4.69631509,3075.0,3074.9,1e-08]
[1765758922894,8.11931509,3075.0,3074.9,1e-08]
[1765758923097,5.50062,3075.0,3074.9,1e-08]
[1765758924111,3.7819398,3075.0,3074.9,1e-08]
[1765758924500,4.1158398,3075.0,3074.9,1e-08]
[1765758925098,4.69631509,3075.0,3074.9,1e-08]
[1765758925523,4.69492109,3075.0,3074.9,1e-08]
[1765758925825,3.84302109,3075.0,3074.9,1e-08]
[1765758926028,5.4040966,3075.0,3074.9,1e-08]
[1765758927515,13.1513456,3075.0,3074.9,1e-08]
[1765758928409,16.5743456,3075.0,3074.9,1e-08]
[1765758928604,39.2326006,3075.0,3074.9,1e-08]
[1765758929400,39.2336006,3075.0,3074.9,1e-08]
[1765758930330,18.4733916,3075.0,3074.9,1e-08]
[1765758930827,38.7156006,3075.0,3074.9,1e-08]
[1765758931124,39.2336006,3075.0,3074.9,1e-08]
[1765758931608,0.405504,3074.5,3073.7,0.002]
[1765758931765,0.1207,3073.7,3072.7,0.4998]
[1765758931967,0.8505,3073.6,3072.7,0.4998]
[1765758932319,0.3325,3073.5,3072.7,0.4998]
[1765758933515,3.26416812,3072.8,3072.7,0.4998]
[1765758933717,3.25436084,3072.8,3072.7,0.4998]
[1765758933922,3.77236084,3072.8,3072.7,0.9515]
[1765758935832,0.00980728,3073.2,3072.7,0.9515]
[1765758936034,0.00980728,3073.2,3073.1,0.6492]
[1765758936436,0.00980728,3073.2,3073.1,1.149]
[1765758936635,3.25344698,3073.7,3073.1,1.149]
[1765758936846,3.77144698,3073.7,3073.5,0.4517]
[1765758937165,3.25306841,3074.1,3073.5,0.4517]
[1765758937328,0.00980728,3074.0,3073.6,0.4998]
[1765758937755,0.00980728,3074.0,3073.9,0.4517]
[1765758937929,3.26289771,3074.0,3073.9,0.4517]
[1765758938129,3.26289771,3074.0,3073.9,0.9515]
[1765758939856,3.78089771,3074.0,3073.9,0.9515]
[1765758940273,3.78089771,3074.0,3073.2,0.4998]
[1765758940274,0.00980728,3073.4,3073.2,0.4998]
[1765758940559,0.52780728,3073.4,3073.2,0.4998]
[1765758940734,0.00980728,3073.6,3073.3,0.4517]
[1765758940938,0.52780728,3073.6,3073.5,0.4517]
[1765758941257,0.52780728,3073.6,3073.1,0.1975]
[1765758941456,0.52780728,3073.6,3073.2,0.4998]
[1765758942161,6.5072393,3073.5,3073.2,0.4998]
[1765758942531,0.00980728,3073.3,3072.7,0.4998]
[1765758942726,0.00980728,3072.8,3072.7,0.4998]
[1765758943160,0.00980728,3072.8,3072.7,0.9515]
[1765758946158,0.00980728,3072.8,3072.6,0.002]
[1765758946159,4.11466812,3072.8,3072.6,0.002]
[1765758946373,0.73690182,3072.7,3072.6,0.002]
[1765758946646,0.73810182,3072.7,3072.6,0.002]
[1765758947089,0.95080182,3072.7,3072.6,0.002]
[1765758947392,0.7331,3072.7,3072.6,0.002]
[1765758947555,0.518,3072.7,3072.6,0.002]
[1765758947756,0.518,3072.7,3072.6,0.4537]
[1765758948454,3.26416812,3072.8,3072.6,0.4537]
[1765758948768,3.78216812,3072.8,3072.7,0.4517]
[1765758949094,3.78216812,3072.8,3072.6,0.002]
[1765758949586,3.26416812,3072.8,3072.7,0.4517]
[1765758949787,3.78216812,3072.8,3072.6,0.002]
[1765758949959,4.16136566,3072.8,3072.6,0.002]
[1765758950157,3.80106675,3072.7,3072.6,0.002]
[1765758950403,3.46976675,3072.7,3072.6,0.002]
[1765758950699,3.25446675,3072.7,3072.6,0.002]
[1765758951470,3.77246675,3072.7,3072.6,0.002]
[1765758951671,3.98776675,3072.7,3072.6,0.002]
[1765758952170,3.77246675,3072.7,3072.6,0.002]
[1765758952777,3.98776675,3072.7,3072.6,0.002]
[1765758953006,3.77246675,3072.7,3072.6,0.4537]
[1765758955794,3.25446675,3072.7,3072.6,0.4537]
[1765758956095,3.77246675,3072.7,3072.6,0.4537]
[1765758956506,3.25446675,3072.7,3072.6,0.002]
[1765758956682,3.77246675,3072.7,3072.6,0.9556]